bitfinex-derivatives/quotes_BTCF0:USTF0_20250527
["timestamp","ask_amount","ask_price","bid_price","bid_amount"]
[1748336631871,0.2776502,109770.0,109760.0,1.25971573]
[1748336637981,0.2776502,109770.0,109760.0,1.42368063]
[1748336638367,0.2776502,109770.0,109760.0,1.47176432]
[1748336642786,0.2776502,109770.0,109760.0,1.35631047]
[1748336642984,0.2776502,109770.0,109760.0,1.47176432]
[1748336645281,0.00013688,109780.0,109770.0,0.1821302]
[1748336645481,0.0625,109790.0,109780.0,0.1821136]
[1748336645681,0.0625,109790.0,109780.0,1.05276745]
[1748336645983,0.0305,109790.0,109780.0,1.05276745]
[1748336646186,0.00012,109790.0,109780.0,0.9373136]
[1748336646484,0.43820211,109800.0,109790.0,0.182097]
[1748336646685,0.43820211,109800.0,109790.0,1.01225085]
[1748336646986,0.46842211,109800.0,109790.0,0.896797]
[1748336647195,0.46842211,109800.0,109790.0,1.01225085]
[1748336647782,0.46942211,109800.0,109790.0,1.01225085]
[1748336647988,0.46942211,109800.0,109790.0,1.02501924]
[1748336648181,0.47142211,109800.0,109790.0,1.02501924]
[1748336648681,0.50544459,109800.0,109790.0,1.03356259]
[1748336650993,0.50544459,109800.0,109790.0,0.90534035]
[1748336651184,0.50544459,109800.0,109790.0,1.03356259]
[1748336652387,0.45992089,109800.0,109790.0,1.03356259]
[1748336653198,0.45980089,109800.0,109790.0,1.03356259]
[1748336653493,0.45992089,109800.0,109790.0,1.86596259]
[1748336654492,0.46048061,109800.0,109790.0,1.86596259]
[1748336655093,0.46048061,109800.0,109790.0,1.73774035]
[1748336655294,0.46048061,109800.0,109790.0,1.86596259]
[1748336655490,0.46048061,109800.0,109790.0,1.45608259]
[1748336655694,0.46048061,109800.0,109790.0,1.86596259]
[1748336656093,0.46048061,109800.0,109790.0,1.83466259]
[1748336656396,0.46048061,109800.0,109790.0,1.70644035]
[1748336656598,0.46048061,109800.0,109790.0,1.83466259]
[1748336658094,0.46048061,109800.0,109790.0,1.41214259]
[1748336659400,0.46048061,109800.0,109790.0,1.00226259]
[1748336659703,0.46048061,109800.0,109790.0,1.40355924]
[1748336659896,0.46048061,109800.0,109790.0,1.56752414]
[1748336661898,0.46048061,109800.0,109790.0,1.64273922]
[1748336662099,0.46048061,109800.0,109790.0,1.69043223]
[1748336663105,0.46048061,109800.0,109790.0,2.11295223]
[1748336668009,0.46048061,109800.0,109790.0,2.10014284]
[1748336668309,0.46048061,109800.0,109790.0,1.69026284]
[1748336668606,0.46048061,109800.0,109790.0,1.57484999]
[1748336668802,0.46048061,109800.0,109790.0,1.69026284]
[1748336671402,0.46048061,109800.0,109790.0,1.65876284]
[1748336673008,0.46048061,109800.0,109790.0,1.72732839]
[1748336673215,0.46048061,109800.0,109790.0,1.37654616]
[1748336674111,0.46048061,109800.0,109790.0,1.07903631]
[1748336674408,0.46048061,109800.0,109790.0,1.37654616]
[1748336674907,0.46048061,109800.0,109790.0,1.39150957]
[1748336675316,0.46048061,109800.0,109790.0,1.27609672]
[1748336675507,0.46048061,109800.0,109790.0,1.39150957]
[1748336675709,0.46048061,109800.0,109790.0,1.22754467]
[1748336676111,0.46487243,109800.0,109790.0,1.22754467]
[1748336676309,0.46487243,109800.0,109790.0,1.17127664]
[1748336676512,0.46487243,109800.0,109790.0,1.21509081]
[1748336676713,0.46487243,109800.0,109790.0,1.24769081]
[1748336677821,0.46487243,109800.0,109790.0,1.1999978]
[1748336678114,0.46487243,109800.0,109790.0,1.21281285]
[1748336679208,0.46048061,109800.0,109790.0,1.21281285]
[1748336680214,0.46487243,109800.0,109790.0,1.21281285]
[1748336680821,0.46487243,109800.0,109790.0,1.37673332]
[1748336681917,0.46487243,109800.0,109790.0,1.24850542]
[1748336682717,0.46487243,109800.0,109790.0,1.29587836]
[1748336683516,0.46487243,109800.0,109790.0,1.28516419]
[1748336683718,0.46487243,109800.0,109790.0,1.41339209]
[1748336683913,0.46487243,109800.0,109790.0,1.24947162]
[1748336684216,0.46475243,109800.0,109790.0,1.24947162]
[1748336685918,0.46475243,109800.0,109790.0,1.26019204]
[1748336688426,0.46475243,109800.0,109790.0,1.24522863]
[1748336690023,0.09661173,109800.0,109790.0,1.59214324]
[1748336690322,0.27869223,109800.0,109790.0,1.59214324]
[1748336690826,0.27881223,109800.0,109790.0,1.59214324]
[1748336691618,0.27881223,109800.0,109790.0,1.30000073]
[1748336692020,0.27881223,109800.0,109790.0,1.42822863]
[1748336693632,0.31151223,109800.0,109790.0,1.42822863]
[1748336694233,0.31151223,109800.0,109790.0,1.38085569]
[1748336697535,0.31151223,109800.0,109790.0,1.25262779]
[1748336697726,0.31151223,109800.0,109790.0,1.38085569]
[1748336697921,0.27881223,109800.0,109790.0,1.5447703]
[1748336698534,0.27881223,109800.0,109790.0,1.64841127]
[1748336698735,0.27881223,109800.0,109790.0,2.01655694]
[1748336700136,0.27881223,109800.0,109790.0,2.00371154]
[1748336700539,0.09673173,109800.0,109790.0,2.11909404]
[1748336700833,0.27869223,109800.0,109790.0,2.11909404]
[1748336701035,0.27881223,109800.0,109790.0,2.11909404]
[1748336701238,0.09673173,109800.0,109790.0,2.11909404]
[1748336701437,0.27881223,109800.0,109790.0,2.11909404]
[1748336701639,0.27881223,109800.0,109790.0,2.00371154]
[1748336702242,0.09673173,109800.0,109790.0,2.00371154]
[1748336702836,0.27869223,109800.0,109790.0,2.00371154]
[1748336703036,0.27881223,109800.0,109790.0,2.00371154]
[1748336703441,0.27881223,109800.0,109790.0,1.52018337]
[1748336703741,0.37211223,109800.0,109790.0,2.39554587]
[1748336704339,0.37211223,109800.0,109790.0,2.23163126]
[1748336704543,0.37211223,109800.0,109790.0,2.17536323]
[1748336704737,0.37211223,109800.0,109790.0,1.23430073]
[1748336704938,0.37211223,109800.0,109790.0,2.17536323]
[1748336705943,0.37211223,109800.0,109790.0,2.18820736]
[1748336706141,0.37211223,109800.0,109790.0,2.00520736]
[1748336706638,0.37211223,109800.0,109790.0,2.03670736]
[1748336706940,0.37211223,109800.0,109790.0,2.06700736]
[1748336707444,0.37211223,109800.0,109790.0,2.23092197]
[1748336709042,0.37211223,109800.0,109790.0,2.06700736]
[1748336710444,0.37211223,109800.0,109790.0,1.93929699]
[1748336711044,0.37211223,109800.0,109790.0,1.81107036]
[1748336711246,0.37211223,109800.0,109790.0,1.93929699]
[1748336712146,0.37211223,109800.0,109790.0,2.12229699]
[1748336712331,0.37211223,109800.0,109790.0,2.09199699]
[1748336712946,0.37211223,109800.0,109790.0,2.04462405]
[1748336713740,0.37211223,109800.0,109790.0,2.20853866]
[1748336713945,0.37211223,109800.0,109790.0,2.08031203]
[1748336714146,0.37211223,109800.0,109790.0,2.20853866]
[1748336715143,0.37211223,109800.0,109790.0,2.17703866]
[1748336715543,0.37211223,109800.0,109790.0,0.88170306]
[1748336715745,1.27093886,109800.0,109790.0,0.52090306]
[1748336716135,1.14271223,109800.0,109790.0,0.52090306]
[1748336716747,1.14271223,109800.0,109790.0,0.51874502]
[1748336716945,1.14271223,109800.0,109790.0,0.35483041]
[1748336718345,1.14271223,109800.0,109790.0,0.29856238]
[1748336719246,1.27093886,109800.0,109790.0,0.29856238]
[1748336719649,1.61201887,109800.0,109790.0,0.22935408]
[1748336720044,1.61201887,109800.0,109790.0,0.22719911]
[1748336721939,1.61201887,109800.0,109790.0,0.23146535]
[1748336722141,1.36201887,109800.0,109790.0,0.23146535]
[1748336722341,1.61201887,109800.0,109790.0,0.16604035]
[1748336722641,1.61201887,109800.0,109790.0,0.12012165]
[1748336723043,1.61201887,109800.0,109790.0,0.03214764]
[1748336723238,1.61201887,109800.0,109790.0,4e-08]
[1748336723439,0.1820971,109790.0,109780.0,0.00640741]
[1748336723642,1.0246993,109790.0,109780.0,0.30640741]
[1748336723939,1.1157873,109790.0,109780.0,0.30640741]
[1748336725150,1.24401393,109790.0,109780.0,0.27942201]
[1748336725546,1.24501393,109790.0,109780.0,0.27942201]
[1748336725758,1.25426022,109790.0,109780.0,0.27942201]
[1748336726853,1.25626022,109790.0,109780.0,0.27942201]
[1748336727154,0.1821136,109780.0,109770.0,0.01514893]
[1748336727451,1.0498936,109780.0,109770.0,0.30514893]
[1748336727652,1.0515758,109780.0,109770.0,0.30514893]
[1748336728452,1.0535758,109780.0,109770.0,0.30514893]
[1748336728853,1.0555758,109780.0,109770.0,0.30514893]
[1748336729247,1.0555758,109780.0,109770.0,0.13765113]
[1748336729552,0.1821302,109770.0,109760.0,0.3061175]
[1748336729745,0.6078124,109770.0,109760.0,0.6261175]
[1748336730855,0.6088124,109770.0,109760.0,0.6261175]
[1748336731948,0.6088124,109770.0,109760.0,0.6584175]
[1748336732257,0.6088124,109770.0,109760.0,0.5350468]
[1748336733050,1.15279903,109770.0,109760.0,0.32]
[1748336733441,1.0245724,109770.0,109760.0,0.32]
[1748336734452,1.0245724,109770.0,109760.0,0.5021468]
[1748336734648,1.0245724,109770.0,109760.0,0.5351468]
[1748336735055,1.0245724,109770.0,109760.0,0.353]
[1748336735253,1.15279903,109770.0,109760.0,0.32]
[1748336735556,1.24390303,109770.0,109760.0,0.32]
[1748336736148,1.1156764,109770.0,109760.0,0.32]
[1748336736459,1.1156764,109770.0,109760.0,0.5021468]
[1748336736660,1.1156764,109770.0,109760.0,0.32]
[1748336737452,1.1156764,109770.0,109760.0,0.3508]
[1748336739054,1.1156764,109770.0,109760.0,0.5329468]
[1748336739255,1.1157964,109770.0,109760.0,0.3508]
[1748336740459,1.1469964,109770.0,109760.0,0.3508]
[1748336740651,0.6401324,109770.0,109760.0,0.5329468]
[1748336740847,0.6401324,109770.0,109760.0,0.66117343]
[1748336741155,0.0028022,109770.0,109760.0,1.08707343]
[1748336741352,0.0026822,109770.0,109760.0,1.09146525]
[1748336741552,0.1849324,109770.0,109760.0,1.09146525]
[1748336741763,0.1848124,109770.0,109760.0,0.96323862]
[1748336741961,0.1849324,109770.0,109760.0,1.09146525]
[1748336742373,0.1849324,109770.0,109760.0,1.08707343]
[1748336742561,0.1849324,109770.0,109760.0,1.08807343]
[1748336743361,0.1839324,109770.0,109760.0,0.9598468]
[1748336743563,0.1839324,109770.0,109760.0,1.08907343]
[1748336744752,0.2140324,109770.0,109760.0,1.08907343]
[1748336745459,0.2140324,109770.0,109760.0,1.09346525]
[1748336746967,0.2140324,109770.0,109760.0,0.96523862]
[1748336747763,0.2140324,109770.0,109760.0,0.71799182]
[1748336747966,0.73305903,109770.0,109760.0,0.35719182]
[1748336748361,0.6048324,109770.0,109760.0,0.35719182]
[1748336748565,0.6048324,109770.0,109760.0,0.5349468]
[1748336748869,1.0205124,109770.0,109760.0,0.5349468]
[1748336749167,1.0206324,109770.0,109760.0,0.60385053]
[1748336749467,1.0206324,109770.0,109760.0,0.60724235]
[1748336749657,1.0216324,109770.0,109760.0,0.60724235]
[1748336750268,0.6058324,109770.0,109760.0,0.60724235]
[1748336750764,1.4315924,109770.0,109760.0,0.60724235]
[1748336751065,1.0707924,109770.0,109760.0,0.60724235]
[1748336751257,1.4315924,109770.0,109760.0,0.60724235]
[1748336752769,1.4315924,109770.0,109760.0,0.42509555]
[1748336753666,1.4315924,109770.0,109760.0,0.42070373]
[1748336754066,1.4315924,109770.0,109760.0,0.38880373]
[1748336754266,1.4315924,109770.0,109760.0,0.35720373]
[1748336758668,1.4315924,109770.0,109760.0,0.36159555]
[1748336760774,1.4626924,109770.0,109760.0,0.35720373]
[1748336761374,1.4626924,109770.0,109760.0,0.53935053]
[1748336762773,1.4626924,109770.0,109760.0,0.57165053]
[1748336762973,1.4626924,109770.0,109760.0,0.5652468]
[1748336763175,1.0527324,109770.0,109760.0,0.5652468]
[1748336763375,1.4627324,109770.0,109760.0,0.5652468]
[1748336763779,1.4627324,109770.0,109760.0,0.56963862]
[1748336764882,1.4627324,109770.0,109760.0,0.5652468]
[1748336765077,1.0216324,109770.0,109760.0,0.69347343]
[1748336765281,1.4316324,109770.0,109760.0,0.69347343]
[1748336765474,0.2150324,109770.0,109760.0,0.69347343]
[1748336765781,0.6250324,109770.0,109760.0,1.05866525]
[1748336765979,0.6249124,109770.0,109760.0,0.95038835]
[1748336766178,0.1849324,109770.0,109760.0,0.95038835]
[1748336766476,0.5949324,109770.0,109760.0,0.95038835]
[1748336766773,0.5948124,109770.0,109760.0,1.07861498]
[1748336767179,0.5949324,109770.0,109760.0,1.07861498]
[1748336767578,0.0028022,109770.0,109760.0,1.41971897]
[1748336767765,0.0026822,109770.0,109760.0,1.41971897]
[1748336768075,0.0028022,109770.0,109760.0,1.60271897]
[1748336768280,0.0026822,109770.0,109760.0,1.60271897]
[1748336768579,0.00013688,109780.0,109770.0,0.1821302]
[1748336768780,0.00013688,109780.0,109770.0,1.91093683]
[1748336768981,0.00025688,109780.0,109770.0,2.25203283]
[1748336770066,0.00025688,109780.0,109770.0,2.25303283]
[1748336770285,0.00025688,109780.0,109770.0,2.26542018]
[1748336771187,0.00025688,109780.0,109770.0,2.44842018]
[1748336772277,0.00025688,109780.0,109770.0,2.19842018]
[1748336775186,0.00025688,109780.0,109770.0,2.55922018]
[1748336778389,0.00025688,109780.0,109770.0,2.59036018]
[1748336779292,0.00025688,109780.0,109770.0,2.59887406]
[1748336779484,0.00025688,109780.0,109770.0,2.50777806]
[1748336780487,0.18237058,109780.0,109770.0,2.50765806]
[1748336781190,0.18237058,109780.0,109770.0,2.51204988]
[1748336782895,0.18237058,109780.0,109770.0,2.503536]
[1748336783595,0.21327058,109780.0,109770.0,2.503536]
[1748336784198,0.21327058,109780.0,109770.0,1.678296]
[1748336784501,0.24377058,109780.0,109770.0,2.503536]
[1748336786396,0.18237058,109780.0,109770.0,2.503536]
[1748336787515,0.00025688,109780.0,109770.0,2.594632]
[1748336787815,0.00025688,109780.0,109770.0,2.60314819]
[1748336788398,0.00025688,109780.0,109770.0,2.19326819]
[1748336788612,0.00025688,109780.0,109770.0,2.51205219]
[1748336788820,0.24727048,109780.0,109770.0,2.51205219]
[1748336789005,0.24727048,109780.0,109770.0,2.503536]
[1748336789615,0.06515688,109780.0,109770.0,2.503536]
[1748336790113,0.24727058,109780.0,109770.0,2.503496]
[1748336791015,0.24727058,109780.0,109770.0,1.678296]
[1748336791205,0.24727058,109780.0,109770.0,2.503496]
[1748336791818,0.06515688,109780.0,109770.0,2.503496]
[1748336792115,0.24727048,109780.0,109770.0,2.503496]
[1748336793218,0.24727048,109780.0,109770.0,2.37526937]
[1748336793518,0.24727048,109780.0,109770.0,2.503496]
[1748336794119,0.24727048,109780.0,109770.0,1.781896]
[1748336794416,0.24727048,109780.0,109770.0,2.503496]
[1748336795012,0.24727048,109780.0,109770.0,2.51421642]
[1748336795417,0.24727048,109780.0,109770.0,2.5098246]
[1748336795619,0.27937048,109780.0,109770.0,2.5098246]
[1748336796420,0.27937048,109780.0,109770.0,2.51421642]
[1748336796917,0.27937048,109780.0,109770.0,2.33208622]
[1748336797111,0.09725688,109780.0,109770.0,2.51421642]
[1748336797311,0.00025688,109780.0,109770.0,2.47708579]
[1748336797518,0.22396933,109800.0,109780.0,0.3186742]
[1748336797519,0.275698,109790.0,109780.0,0.3186742]
[1748336797716,0.275698,109790.0,109780.0,1.0298742]
[1748336797906,0.275818,109790.0,109780.0,1.15810083]
[1748336798105,0.275818,109790.0,109780.0,1.54262083]
[1748336798308,0.275818,109790.0,109780.0,1.12770083]
[1748336798517,0.275818,109790.0,109780.0,1.54262083]
[1748336799315,0.275818,109790.0,109780.0,1.55400818]
[1748336800717,0.275818,109790.0,109780.0,1.73700818]
[1748336801720,0.275818,109790.0,109780.0,1.73900818]
[1748336802120,0.275818,109790.0,109780.0,1.74802914]
[1748336802625,0.275818,109790.0,109780.0,1.74902914]
[1748336804323,0.76484463,109790.0,109780.0,0.33438735]
[1748336804519,0.636618,109790.0,109780.0,0.323]
[1748336804826,0.275818,109790.0,109780.0,0.865914]
[1748336805222,0.275698,109790.0,109780.0,0.865914]
[1748336805418,0.275818,109790.0,109780.0,0.865914]
[1748336805621,0.40404463,109790.0,109780.0,0.33155349]
[1748336805821,0.76484463,109790.0,109780.0,0.33155349]
[1748336806824,0.76484463,109790.0,109780.0,0.323]
[1748336807226,0.182114,109780.0,109770.0,0.00869037]
[1748336807527,0.1821306,109770.0,109760.0,7e-08]
[1748336807714,0.5429306,109770.0,109760.0,0.29000007]
[1748336808116,0.5429306,109770.0,109760.0,0.29640193]
[1748336808329,0.5430506,109770.0,109760.0,0.29640193]
[1748336808626,0.5430506,109770.0,109760.0,0.29940193]
[1748336809217,0.5430506,109770.0,109750.0,0.00013688]
[1748336809218,0.1821469,109760.0,109750.0,0.00013688]
[1748336809527,1.08105353,109760.0,109750.0,0.08419028]
[1748336809726,0.1821635,109750.0,109740.0,0.0013669]
[1748336809928,0.76231013,109750.0,109740.0,0.3213669]
[1748336810128,0.6340835,109750.0,109740.0,0.3213669]
[1748336810421,0.6659835,109750.0,109740.0,0.3213669]
[1748336810927,0.6659835,109750.0,109740.0,0.32562281]
[1748336811123,0.6659835,109750.0,109740.0,0.01685851]
[1748336811124,0.95309013,109750.0,109740.0,0.01685851]
[1748336811329,0.95309013,109750.0,109730.0,8e-08]
[1748336811330,0.1821801,109740.0,109730.0,8e-08]
[1748336811520,1.08108673,109740.0,109730.0,8e-08]
[1748336811829,1.2939881,109740.0,109730.0,8e-08]
[1748336812124,1.30317828,109740.0,109730.0,0.0800001]
[1748336812430,1.30317828,109740.0,109730.0,1e-07]
[1748336813021,1.43140491,109740.0,109730.0,1e-07]
[1748336814331,0.1821981,109730.0,109720.0,8e-08]
[1748336814529,0.9581381,109730.0,109720.0,0.16000008]
[1748336814727,1.2992741,109730.0,109720.0,0.16000008]
[1748336815322,0.9580381,109730.0,109720.0,0.16000008]
[1748336815522,1.3680381,109730.0,109720.0,0.36420008]
[1748336815925,1.3681581,109730.0,109720.0,0.36420008]
[1748336816225,1.3681581,109730.0,109720.0,0.67464141]
[1748336816226,0.1821981,109730.0,109720.0,0.67464141]
[1748336816531,0.1823181,109730.0,109720.0,0.90721478]
[1748336816834,0.1821981,109730.0,109720.0,0.90721478]
[1748336817130,0.1823181,109730.0,109720.0,0.90721478]
[1748336817329,0.1821981,109730.0,109720.0,0.93971478]
[1748336817631,0.1823181,109730.0,109720.0,0.93971478]
[1748336819736,0.1823181,109730.0,109720.0,0.57891478]
[1748336820326,0.1823181,109730.0,109720.0,0.93971478]
[1748336821139,0.5923981,109730.0,109720.0,0.93971478]
[1748336821336,0.1823181,109730.0,109720.0,0.93971478]
[1748336823731,0.1821981,109730.0,109720.0,0.93971478]
[1748336823936,0.1823181,109730.0,109720.0,0.93971478]
[1748336826243,0.1821981,109730.0,109720.0,0.93971478]
[1748336826436,0.1823181,109730.0,109720.0,0.93971478]
[1748336833642,0.1823181,109730.0,109720.0,0.94820692]
[1748336836645,0.1823181,109730.0,109720.0,0.93971478]
[1748336837848,0.1823181,109730.0,109720.0,0.97099478]
[1748336839238,0.1823181,109730.0,109720.0,1.38631478]
[1748336839848,0.1823181,109730.0,109720.0,1.38431478]
[1748336841044,0.1823181,109730.0,109720.0,1.38231478]
[1748336842749,0.00012,109730.0,109720.0,1.38231478]
[1748336843244,0.00013688,109740.0,109730.0,0.1821983]
[1748336843448,0.3187819,109760.0,109750.0,0.1821651]
[1748336843755,0.3188513,109770.0,109760.0,0.1821485]
[1748336843942,0.7289313,109770.0,109760.0,0.5655485]
[1748336844446,0.7290513,109770.0,109760.0,0.57408871]
[1748336845150,0.3189713,109770.0,109760.0,0.93488871]
[1748336845350,0.22778748,109780.0,109770.0,0.1821319]
[1748336845550,0.00013688,109780.0,109770.0,0.9130319]
[1748336846151,0.18237218,109780.0,109770.0,0.92218874]
[1748336846353,0.18525218,109780.0,109770.0,0.92218874]
[1748336846555,0.18837218,109780.0,109770.0,0.92218874]
[1748336846751,0.18837218,109780.0,109770.0,0.95318874]
[1748336848055,0.18537218,109780.0,109770.0,0.95318874]
[1748336848359,0.18237218,109780.0,109770.0,0.95318874]
[1748336848552,0.18237218,109780.0,109770.0,0.96171069]
[1748336851658,0.18237218,109780.0,109770.0,0.95255385]
[1748336855565,0.18237218,109780.0,109770.0,0.96620431]
[1748336856163,0.18237218,109780.0,109770.0,0.95768236]
[1748336858956,0.18237218,109780.0,109770.0,1.37232236]
[1748336860565,0.18237218,109780.0,109770.0,1.36793054]
[1748336862466,0.18237218,109780.0,109770.0,0.95329054]
[1748336862666,0.18247218,109780.0,109770.0,1.36793054]
[1748336862860,0.18247218,109780.0,109770.0,0.95329054]
[1748336863060,0.18247218,109780.0,109770.0,1.36789054]
[1748336863863,0.18247218,109780.0,109770.0,1.3586319]
[1748336864266,0.18247218,109780.0,109770.0,1.36715385]
[1748336865268,0.18247218,109780.0,109770.0,0.9440319]
[1748336865959,0.18237218,109780.0,109770.0,0.9440319]
[1748336866667,0.18247218,109780.0,109770.0,0.9440319]
[1748336867371,0.18237218,109780.0,109770.0,0.9440319]
[1748336869472,0.18237218,109780.0,109770.0,0.95255385]
[1748336870662,0.18237218,109780.0,109770.0,0.96157301]
[1748336873276,0.18237218,109780.0,109770.0,0.95305106]
[1748336875267,0.54317218,109780.0,109770.0,0.3701]
[1748336875469,0.54357218,109780.0,109770.0,0.2129]
[1748336875666,0.54357218,109780.0,109770.0,0.3729]
[1748336876673,0.54345218,109780.0,109770.0,0.3729]
[1748336877776,0.54345218,109780.0,109770.0,0.38144638]
[1748336878478,0.54535218,109780.0,109770.0,0.38144638]
[1748336879179,0.54535218,109780.0,109770.0,0.3729]
[1748336880079,0.54735218,109780.0,109770.0,0.3729]
[1748336880267,0.95697218,109780.0,109770.0,0.5550313]
[1748336880465,0.95697218,109780.0,109770.0,0.3729]
[1748336880981,0.95709218,109780.0,109770.0,0.3729]
[1748336881479,0.95709218,109780.0,109770.0,0.38144638]
[1748336882181,0.59629218,109780.0,109770.0,0.56357768]
[1748336882381,0.59629218,109780.0,109770.0,0.5550313]
[1748336883179,0.59629218,109780.0,109770.0,0.40675376]
[1748336883480,0.59629218,109780.0,109770.0,0.22462246]
[1748336883671,0.95709218,109780.0,109770.0,0.22462246]
[1748336884080,0.95709218,109780.0,109770.0,0.22901428]
[1748336885075,0.98729218,109780.0,109770.0,0.22462246]
[1748336885376,0.62649218,109780.0,109770.0,0.40675376]
[1748336886684,0.62649218,109780.0,109770.0,0.47055376]
[1748336888088,0.62649218,109780.0,109770.0,0.47494558]
[1748336888281,0.21657218,109780.0,109770.0,0.47494558]
[1748336888585,0.62649218,109780.0,109770.0,0.47494558]
[1748336888880,0.98729218,109780.0,109770.0,0.47494558]
[1748336889080,0.62649218,109780.0,109770.0,0.47494558]
[1748336889280,0.18637218,109780.0,109770.0,0.83574558]
[1748336889482,0.59629218,109780.0,109770.0,0.83574558]
[1748336889687,0.18637218,109780.0,109770.0,0.83574558]
[1748336890183,0.59629218,109780.0,109770.0,0.83574558]
[1748336890383,0.59617218,109780.0,109770.0,0.83574558]
[1748336890574,0.59617218,109780.0,109770.0,0.47494558]
[1748336891187,0.59629218,109780.0,109770.0,0.47055376]
[1748336892186,0.59629218,109780.0,109770.0,0.47494558]
[1748336896295,0.59629218,109780.0,109770.0,0.47055376]
[1748336901302,0.59629218,109780.0,109770.0,0.48349196]
[1748336902397,0.59629218,109780.0,109770.0,0.47910014]
[1748336903203,0.59629218,109780.0,109770.0,0.52571886]
[1748336905216,0.18637218,109780.0,109770.0,0.52571886]
[1748336905416,0.59629218,109780.0,109770.0,0.52571886]
[1748336909618,0.62649218,109780.0,109770.0,0.52571886]
[1748336914515,0.21657218,109780.0,109770.0,0.52571886]
[1748336914820,0.62649218,109780.0,109770.0,0.52571886]
[1748336916222,0.21657218,109780.0,109770.0,0.52571886]
[1748336916423,0.62649218,109780.0,109770.0,0.52571886]
[1748336916626,0.59629218,109780.0,109770.0,0.52571886]
[1748336917525,0.59629218,109780.0,109770.0,0.51717248]
[1748336918626,0.18637218,109780.0,109770.0,0.51717248]
[1748336918828,0.62649218,109780.0,109770.0,0.51717248]
[1748336919416,0.65699218,109780.0,109770.0,0.51717248]
[1748336920928,1.01779218,109780.0,109770.0,0.51717248]
[1748336921630,1.01767218,109780.0,109770.0,0.33504118]
[1748336921926,1.01767218,109780.0,109770.0,0.34360447]
[1748336924234,1.01767218,109780.0,109770.0,0.52573587]
[1748336924421,1.01767218,109780.0,109770.0,0.34360447]
[1748336924727,1.01767218,109780.0,109770.0,0.29698575]
[1748336926133,0.65687218,109780.0,109770.0,0.47911715]
[1748336926534,1.01767218,109780.0,109770.0,0.47911715]
[1748336928524,0.65687218,109780.0,109770.0,0.29698575]
[1748336928724,0.65687218,109780.0,109770.0,0.47911715]
[1748336929233,0.65687218,109780.0,109770.0,0.29698575]
[1748336929538,1.01767218,109780.0,109770.0,0.29698575]
[1748336933236,0.60775218,109780.0,109770.0,0.29698575]
[1748336933531,1.65111477,109780.0,109770.0,9e-08]
[1748336933835,0.1821314,109770.0,109760.0,0.0303]
[1748336934038,0.73353799,109770.0,109760.0,0.0803]
[1748336934533,0.73353799,109770.0,109760.0,0.08671816]
[1748336935036,0.73453799,109770.0,109760.0,0.08671816]
[1748336935729,0.73453799,109770.0,109760.0,0.05641816]
[1748336936330,0.73553799,109770.0,109760.0,0.05641816]
[1748336936536,0.73553799,109770.0,109760.0,0.00641816]
[1748336936734,0.73553799,109770.0,109760.0,0.01068856]
[1748336937032,0.82664199,109770.0,109760.0,6e-08]
[1748336937236,1.07664199,109770.0,109760.0,6e-08]
[1748336937731,1.07664199,109770.0,109760.0,8e-08]
[1748336940235,0.82664199,109770.0,109760.0,8e-08]
[1748336940538,1.07664199,109770.0,109760.0,8e-08]
[1748336941439,0.182148,109760.0,109750.0,0.00150365]
[1748336941633,1.55767459,109760.0,109750.0,0.00150365]
[1748336941835,1.52048,109760.0,109750.0,0.00150365]
[1748336942038,1.64878659,109760.0,109750.0,0.03430365]
[1748336942334,1.64878659,109760.0,109750.0,0.06650365]
[1748336942938,1.64878659,109760.0,109750.0,0.09650365]
[1748336943345,1.65078659,109760.0,109750.0,0.09650365]
[1748336945049,1.65278659,109760.0,109750.0,0.09650365]
[1748336945942,1.65284666,109760.0,109750.0,0.09650365]
[1748336947638,1.56173466,109760.0,109750.0,0.09650365]
[1748336950747,1.56163466,109760.0,109750.0,0.09650365]
[1748336951651,1.433268,109760.0,109750.0,0.09650365]
[1748336951950,1.56163466,109760.0,109750.0,0.09513688]
[1748336954844,1.56163466,109760.0,109750.0,0.06513688]
[1748336957960,0.1821647,109750.0,109740.0,0.0309]
[1748336958149,0.73383136,109750.0,109740.0,0.0609]
[1748336958758,0.74299428,109750.0,109740.0,0.0609]
[1748336959955,0.74399428,109750.0,109740.0,0.0309]
[1748336960161,0.74499428,109750.0,109740.0,0.0409]
[1748336960758,0.61662762,109750.0,109740.0,0.0409]
[1748336960952,0.74499428,109750.0,109740.0,0.0409]
[1748336961361,0.74499428,109750.0,109740.0,0.1038]
[1748336962766,0.61662762,109750.0,109740.0,0.1038]
[1748336966070,0.73217324,109750.0,109740.0,0.1038]
[1748336966971,0.61662762,109750.0,109740.0,0.1038]
[1748336968265,1.02670762,109750.0,109740.0,0.1038]
[1748336968662,1.02670762,109750.0,109740.0,0.10807301]
[1748336969068,1.02670762,109750.0,109740.0,0.22361863]
[1748336970174,0.58602762,109750.0,109740.0,0.33916425]
[1748336970373,1.37792762,109750.0,109740.0,0.61916425]
[1748336970764,1.37804762,109750.0,109740.0,0.61916425]
[1748336970967,1.40824762,109750.0,109740.0,0.6212863]
[1748336971167,1.40824762,109750.0,109740.0,0.50574068]
[1748336972974,1.40824762,109750.0,109740.0,0.39019506]
[1748336973169,1.40824762,109750.0,109740.0,0.50574068]
[1748336975973,1.37808762,109750.0,109740.0,0.50574068]
[1748336977370,0.96796762,109750.0,109740.0,0.50574068]
[1748336977576,1.37808762,109750.0,109740.0,0.50574068]
[1748336978775,1.37808762,109750.0,109740.0,0.49934562]
[1748336979878,1.37808762,109750.0,109740.0,0.50373744]
[1748336980075,1.40918762,109750.0,109740.0,0.50373744]
[1748336980276,1.40918762,109750.0,109740.0,0.38819182]
[1748336980881,1.40918762,109750.0,109740.0,0.3838]
[1748336981177,0.55424762,109750.0,109740.0,0.68152662]
[1748336981570,0.96432762,109750.0,109740.0,0.68152662]
[1748336981771,0.96432762,109750.0,109740.0,0.69006253]
[1748336981772,0.96420762,109750.0,109740.0,0.69006253]
[1748336981982,0.96432762,109750.0,109740.0,0.69445435]
[1748336982481,0.96432762,109750.0,109740.0,0.51227335]
[1748336982875,0.96432762,109750.0,109740.0,0.50788153]
[1748336983081,0.96432762,109750.0,109740.0,0.43965581]
[1748336983472,1.11067324,109750.0,109740.0,0.43965581]
[1748336984073,1.11067324,109750.0,109740.0,0.37675581]
[1748336984382,1.14387324,109750.0,109740.0,0.09675581]
[1748336984985,1.02832762,109750.0,109740.0,0.16175581]
[1748336985175,1.14387324,109750.0,109740.0,0.16175581]
[1748336985478,1.14387324,109750.0,109740.0,0.16816695]
[1748336985679,1.14387324,109750.0,109740.0,0.11231114]
[1748336985977,1.15671455,109750.0,109740.0,0.11231114]
[1748336986181,1.15671455,109750.0,109740.0,0.04731114]
[1748336987878,1.15671455,109750.0,109740.0,0.07911114]
[1748336988697,1.15671455,109750.0,109740.0,0.07697322]
[1748336990476,0.1821976,109730.0,109720.0,0.1754113]
[1748336990676,0.5922776,109730.0,109720.0,0.4654113]
[1748336990875,0.6241776,109730.0,109720.0,0.4654113]
[1748336991285,0.6241776,109730.0,109720.0,0.419858]
[1748336991685,0.6241776,109730.0,109720.0,0.421858]